fUST/lending_fUST_20260211
["ID","MTS","AMOUNT","RATE_DAILY","PERIOD"]
[405089928,1770779441088,-360.0198023,0.00037202,14]
[405089929,1770779441097,-168.0,0.00037214,2]
[405089930,1770779441109,-168.0,0.00037229,2]
[405089931,1770779441119,-168.0,0.00037274,2]
[405089932,1770779441129,-150.0,0.000373,15]
[405089933,1770779441140,-1000.0,0.000373,15]
[405089934,1770779441151,-393.0,0.000375,120]
[405089935,1770779441161,-356.0,0.00037534,2]
[405089936,1770779441170,-216.0,0.00037541,2]
[405089937,1770779441179,-168.0,0.00037691,2]
[405089938,1770779441190,-1525.114183,0.000377,26]
[405089939,1770779441209,-2114.57618854,0.0003771,2]
[405089940,1770779441222,-168.0,0.00037719,2]
[405089941,1770779441233,-600.0,0.00037739,30]
[405089942,1770779441244,-168.0,0.0003777,2]
[405089943,1770779441254,-180.6,0.000378,2]
[405089944,1770779441266,-168.0,0.00037837,7]
[405089945,1770779441276,-423.0,0.00037894,2]
[405089946,1770779441286,-250.0,0.000379,10]
[405089947,1770779441297,-782.0,0.000379,2]
[405089948,1770779441307,-3020.63748687,0.000379,2]
[405089949,1770779441316,-168.0,0.00037901,2]
[405089950,1770779441328,-4534.46730616,0.00037907,3]
[405089951,1770779441338,-91431.59321674,0.00037917,2]
[405089952,1770779441347,-151.0,0.00037917,31]
[405089953,1770779441358,-202.728964,0.00037917,31]
[405089954,1770779441368,-487.0,0.00037917,2]
[405089955,1770779441379,-487.0,0.00037917,2]
[405089956,1770779441388,-487.0,0.00037917,2]
[405089957,1770779441398,-487.0,0.00037917,2]
[405089958,1770779441408,-487.0,0.00037917,2]
[405089959,1770779441418,-487.0,0.00037917,2]
[405089960,1770779441428,-487.0,0.00037917,2]
[405089961,1770779441437,-487.0,0.00037917,2]
[405089962,1770779441447,-487.0,0.00037917,2]
[405089963,1770779441457,-487.0,0.00037917,2]
[405089964,1770779441467,-487.0,0.00037917,2]
[405089965,1770779441476,-487.0,0.00037917,2]
[405089966,1770779441485,-487.0,0.00037917,2]
[405089967,1770779441495,-932.2,0.00037917,2]
[405089968,1770779441505,-168.0,0.00037941,2]
[405089969,1770779441515,-500.0,0.00037946,30]
[405089970,1770779441524,-18137.8692246,0.00037962,3]
[405089971,1770779441534,-25230.17379213,0.00037972,2]
[405089972,1770779441544,-2504.48089227,0.00037972,2]
[405089973,1770779441554,-35225.00880576,0.00037972,2]
[405089974,1770779441563,-47256.58478836,0.00037972,2]
[405089984,1770779444751,-398.03075519,0.00037972,2]
[405089989,1770779446262,-18897.26,0.00037972,2]
[405089990,1770779467057,500.0,0.00013699,2]
[405089991,1770779467112,504.14408874,0.00014247,2]
[405089993,1770779520929,404.71,0.00029,2]
[405089994,1770779524785,180.0,0.00030136,120]
[405089995,1770779571461,851.9688985,0.0003,2]
[405089996,1770779589100,303.10001603,0.000189,2]
[405089997,1770779589163,302.58027932,0.00019089,2]
[405089998,1770779611747,150.0,0.0002589,2]
[405089999,1770779612211,177.0,0.0002789,2]
[405090000,1770779612664,204.0,0.0002989,2]
[405090006,1770779703511,500.0,0.00013699,2]
[405090007,1770779703572,1121.97237761,0.00014247,2]
[405090010,1770779807325,-170.0,0.00032,120]
[405090011,1770779927885,150.0,0.0002589,2]
[405090012,1770779928341,189.0,0.0002789,2]
[405090029,1770780352319,6050.37842854,0.0003,2]
[405090030,1770780426100,-4824.31809,0.0003,2]
[405090031,1770780473915,10000.0,0.00025,15]
[405090032,1770780473939,10000.0,0.00025,15]
[405090033,1770780473964,10000.0,0.00025,15]
[405090034,1770780473988,10000.0,0.00025,15]
[405090035,1770780474013,10000.0,0.00025,15]
[405090036,1770780477792,-4700.0,0.00025,15]
[405090037,1770780480741,10000.0,0.00024,2]
[405090038,1770780505401,-5461.45100854,0.00024,2]
[405090039,1770780508456,3053.37893767,0.00017,2]
[405090042,1770780546145,-9733.69841074,0.0002465,2]
[405090043,1770780546168,-300.0,0.00024998,2]
[405090044,1770780546190,-447.32464188,0.00024999,2]
[405090045,1770780546219,-500.0,0.00024999,2]
[405090046,1770780546259,-500.0,0.00024999,2]
[405090047,1770780546296,-413.54496778,0.00024999,2]
[405090048,1770780546319,-46459.76569531,0.00025,15]
[405090049,1770780546345,-351.24022538,0.00029286,2]
[405090050,1770780546367,-1035.09854934,0.0003,2]
[405090051,1770780546392,-2963.08300397,0.000301,2]
[405090052,1770780546416,-2154.32273618,0.00031341,2]
[405090053,1770780546459,-180.97926587,0.00031341,7]
[405090054,1770780546492,-4317.59169208,0.000319,2]
[405090055,1770780550121,-25524.11914729,0.000319,2]
[405090056,1770780550143,-201.37422692,0.00032,2]
[405090057,1770780550166,-372.84695288,0.00033154,2]
[405090058,1770780550188,-203.19601178,0.00033154,2]
[405090059,1770780550212,-30269.27700212,0.00035,2]
[405090060,1770780561116,-4244.43063346,0.00035,2]
[405090062,1770780609749,174.66024175,0.00013273,2]
[405090103,1770780632286,-171.8734669,0.00034747,2]
[405090105,1770780632296,-276.29430166,0.00034999,3]
[405090187,1770780633438,3481.53547243,0.00025583,2]
[405090202,1770780638490,-23.70569834,0.00034999,3]
[405090203,1770780638500,-300.0,0.00034999,3]
[405090204,1770780638510,-1200.0,0.00034999,3]
[405090205,1770780638519,-216.02847266,0.00035,2]
[405090207,1770780640493,-911.46985781,0.00035,2]
[405090208,1770780640565,-1071.79891709,0.00035,2]
[405090229,1770780691732,380.45473758,0.00013273,2]
[405090242,1770780818326,10000.0,0.000237,2]
[405090243,1770780833756,3700.0,0.000237,2]
[405090258,1770781140759,180.0,0.00030137,120]
[405090261,1770781344769,-425.79626862,0.00024456,2]
[405090262,1770781537545,-499.99956582,0.00023969,2]
[405090263,1770781540738,-266.17358988,0.00023969,2]
[405090264,1770781557140,-1114.27273279,0.00023969,2]
[405090265,1770781560461,194.78760602,0.000237,2]
[405090266,1770781636096,-298.86730843,0.00023969,2]
[405090267,1770781636118,-294.71761526,0.00024334,2]
[405090268,1770781636138,-3321.63121867,0.00024574,2]
[405090269,1770781645087,-200.52098946,0.00024574,2]
[405090270,1770781645108,-242.06914439,0.00027884,2]
[405090271,1770781651082,-233.29641461,0.00027884,2]
[405090272,1770781651103,-300.0,0.00029257,2]
[405090273,1770781651122,-300.0,0.00029258,2]
[405090274,1770781651142,-300.0,0.00029258,2]
[405090275,1770781651160,-170.0,0.0002926,14]
[405090276,1770781651180,-300.0,0.00031899,2]
[405090277,1770781651198,-200.0,0.000319,120]
[405090278,1770781651217,-3425.64987554,0.000319,2]
[405090279,1770781651236,-307.89,0.00031931,2]
[405090280,1770781651255,-3573.7943716,0.00031975,2]
[405090281,1770781651276,-169.0,0.00033,14]
[405090282,1770781651295,-500.0,0.00033066,7]
[405090283,1770781651315,-162.96164284,0.000332,117]
[405090284,1770781651333,-96.14655414,0.00033253,7]
[405090285,1770781746132,-499.99956582,0.00024953,2]
[405090286,1770781746154,-266.17358988,0.00031336,2]
[405090287,1770781746174,-704.32957,0.00031437,2]
[405090288,1770781746194,-403.85344586,0.00033253,7]
[405090289,1770781753110,-176.18434943,0.00033373,2]
[405090290,1770781753131,-1832.3338327,0.00033623,2]
[405090291,1770781753154,-500.0,0.00033718,7]
[405090292,1770781753175,-500.0,0.00033718,7]
[405090293,1770781753193,-501.41960638,0.00033718,7]
[405090294,1770781753215,-500.0,0.00033718,7]
[405090295,1770781753238,-500.0,0.00033718,7]
[405090296,1770781753261,-500.0,0.00033718,7]
[405090297,1770781753281,-500.0,0.00033718,7]
[405090298,1770781753309,-256.68407802,0.00033718,7]
[405090299,1770781761104,-1585.93214144,0.00033618,2]
[405090300,1770781761125,-243.31592198,0.00033718,7]
[405090301,1770781761146,-500.0,0.00033718,7]
[405090302,1770781761167,-500.0,0.00033718,7]
[405090303,1770781761187,-500.0,0.00033718,7]
[405090304,1770781761212,-500.0,0.00033718,7]
[405090305,1770781761235,-500.0,0.00033718,7]
[405090306,1770781761255,-157.06055197,0.00033718,7]
[405090307,1770781761275,-500.0,0.00033718,7]
[405090308,1770781761295,-500.0,0.00033718,7]
[405090309,1770781761319,-500.0,0.00033718,7]
[405090310,1770781761341,-500.0,0.00033718,7]
[405090311,1770781761361,-500.0,0.00033718,7]
[405090312,1770781761382,-500.0,0.00033718,7]
[405090313,1770781761403,-275.21095962,0.00033718,7]
[405090314,1770781761423,-500.0,0.00033718,7]
[405090315,1770781761444,-500.0,0.00033718,7]
[405090316,1770781761464,-500.0,0.00033718,7]
[405090317,1770781761484,-500.0,0.00033718,7]
[405090318,1770781761505,-500.0,0.00033718,7]
[405090319,1770781761525,-500.0,0.00033718,7]
[405090320,1770781761546,-500.0,0.00033718,7]
[405090321,1770781761567,-500.0,0.00033718,7]
[405090322,1770781761593,-500.0,0.00033718,7]
[405090323,1770781761614,-500.0,0.00033718,7]
[405090324,1770781761637,-500.0,0.00033718,7]
[405090325,1770781761657,-500.0,0.00033718,7]
[405090326,1770781761679,-500.0,0.00033718,7]
[405090327,1770781761700,-500.0,0.00033718,7]
[405090328,1770781761720,-500.0,0.00033718,7]
[405090329,1770781761742,-500.0,0.00033718,7]
[405090330,1770781761764,-500.0,0.00033718,7]
[405090331,1770781761784,-500.89975601,0.00033718,7]
[405090332,1770781761804,-500.0,0.00033718,7]
[405090333,1770781761825,-500.0,0.00033718,7]
[405090334,1770781761845,-500.0,0.00033718,7]
[405090335,1770781761866,-500.0,0.00033718,7]
[405090336,1770781761885,-500.0,0.00033718,7]
[405090337,1770781761906,-500.0,0.00033718,7]
[405090338,1770781761927,-500.0,0.00033718,7]
[405090339,1770781761948,-500.0,0.00033718,7]
[405090340,1770781761969,-500.0,0.00033718,7]
[405090341,1770781761990,-500.0,0.00033718,7]
[405090342,1770781762011,-500.0,0.00033718,7]
[405090343,1770781762032,-500.0,0.00033718,7]
[405090344,1770781762052,-500.0,0.00033718,7]
[405090345,1770781762072,-500.0,0.00033718,7]
[405090346,1770781762094,-305.69729548,0.00033718,7]
[405090347,1770781766106,-194.30270452,0.00033718,7]
[405090348,1770781766128,-500.0,0.00033718,7]
[405090349,1770781766150,-500.0,0.00033718,7]
[405090350,1770781766171,-500.0,0.00033718,7]
[405090351,1770781766192,-500.0,0.00033718,7]
[405090352,1770781766212,-500.0,0.00033718,7]
[405090353,1770781766234,-500.0,0.00033718,7]
[405090354,1770781766255,-500.0,0.00033718,7]
[405090355,1770781766275,-500.0,0.00033718,7]
[405090356,1770781766295,-500.0,0.00033718,7]
[405090357,1770781766315,-500.0,0.00033718,7]
[405090358,1770781766334,-500.0,0.00033718,7]
[405090359,1770781766356,-500.0,0.00033718,7]
[405090360,1770781766376,-157.66174236,0.00033718,7]
[405090361,1770781766396,-500.0,0.00033718,7]
[405090362,1770781766418,-500.0,0.00033718,7]
[405090363,1770781766438,-500.0,0.00033718,7]
[405090364,1770781766458,-500.0,0.00033718,7]
[405090365,1770781766478,-500.0,0.00033718,7]
[405090366,1770781766500,-500.0,0.00033718,7]
[405090367,1770781766524,-500.0,0.00033718,7]
[405090368,1770781766545,-500.0,0.00033718,7]
[405090369,1770781766566,-500.0,0.00033718,7]
[405090370,1770781766674,-500.0,0.00033718,7]
[405090371,1770781766697,-500.0,0.00033718,7]
[405090372,1770781766717,-443.72907335,0.00033718,7]
[405090373,1770781766738,-500.0,0.00033718,7]
[405090374,1770781766761,-500.0,0.00033718,7]
[405090375,1770781766783,-500.0,0.00033718,7]
[405090376,1770781766809,-523.54710943,0.00033718,7]
[405090377,1770781766831,-500.0,0.00033718,7]
[405090378,1770781766851,-500.0,0.00033719,7]
[405090379,1770781766871,-553.32023519,0.0003372,2]
[405090380,1770781766889,-742.18218896,0.00033721,7]
[405090381,1770781766910,-406.62954402,0.00033722,7]
[405090382,1770781766929,-705.6286368,0.00033723,2]
[405090383,1770781766949,-10470.49996201,0.00033723,2]
[405090384,1770781769744,3503.58055976,0.00025583,2]
[405090385,1770781771775,439.09,0.00030137,7]
[405090413,1770781832773,-1115.41542875,0.00033477,2]
[405090422,1770781840709,-3e-08,0.00033477,2]
[405090426,1770781844820,-364.29172632,0.00033477,2]
[405090427,1770781844832,-2087.09714172,0.00033723,2]
[405090428,1770781844943,-123.80808142,0.00033723,2]
[405090429,1770781844955,-462.75558275,0.00033723,2]
[405090430,1770781844965,-90.19573272,0.00034,2]
[405090431,1770781844978,-2913.40426728,0.00034,2]
[405090432,1770781844988,-495.85,0.000349,2]
[405090433,1770781844998,-286.8762017,0.000349,2]
[405090434,1770781845013,-208.33125193,0.000349,2]
[405090435,1770781845023,-1585.9321414,0.00034911,2]
[405090436,1770781845035,-2000.0,0.00034979,2]
[405090437,1770781845057,-2000.0,0.00034979,2]
[405090438,1770781845078,-228.29334565,0.00034979,2]
[405090439,1770781845282,-1771.70665435,0.00034979,2]
[405090440,1770781845294,-439.66715816,0.00034979,2]
[405090444,1770781846480,-615.96375958,0.00034979,2]
[405090445,1770781846564,-944.36908226,0.00034979,2]
[405090446,1770781846573,-2000.0,0.00034979,2]
[405090447,1770781846582,-2000.0,0.00034979,2]
[405090448,1770781846591,-2000.0,0.00034979,2]
[405090449,1770781846600,-2000.0,0.00034979,2]
[405090450,1770781846614,-2000.0,0.00034979,2]
[405090451,1770781846623,-2000.0,0.00034979,2]
[405090452,1770781846632,-2000.0,0.00034979,2]
[405090453,1770781846642,-2000.0,0.00034979,2]
[405090454,1770781846654,-2000.0,0.00034979,2]
[405090455,1770781846663,-459.56960473,0.00034979,2]
[405090456,1770781846673,-294.0644761,0.0003499,2]
[405090457,1770781846682,-10543.71611325,0.00035,2]
[405090466,1770781860641,233.82641006,0.00024953,2]
[405090467,1770781899398,208.33125193,0.00024853,2]
[405090470,1770782273315,1000000.0,0.000237,2]
[405090473,1770782833080,-420.22707926,0.00025583,2]
[405090474,1770782841133,-1246.3835369,0.00025583,2]
[405090475,1770782851083,-472.77059352,0.00025583,2]
[405090476,1770782951085,-2109.65983447,0.00025583,2]
[405090477,1770782955161,-1370.86602847,0.00025583,2]
[405090478,1770782955183,-152.63099033,0.00031713,2]
[405090479,1770782955205,-342.1625263,0.00032495,2]
[405090480,1770782955228,-208.7940589,0.00032676,60]
[405090481,1770782955250,-200.0,0.0003268,2]
[405090482,1770782955270,-1600.0,0.00032714,3]
[405090483,1770782955292,-400.0,0.00032714,2]
[405090484,1770782955316,-76.83561544,0.00032715,2]
[405090485,1770782956097,-1439.75317256,0.00032715,2]
[405090486,1770782956116,-300.0,0.00033025,2]
[405090487,1770782956136,-240.4525439,0.00033172,2]
[405090488,1770782956155,-343.89310454,0.00033383,2]
[405090489,1770782959315,150.60814418,0.00032495,2]
[405090490,1770782967090,-245.73304691,0.00034218,2]
[405090491,1770782967115,-442.31948444,0.00034218,2]
[405090492,1770782967138,-785.55940437,0.00034218,2]
[405090493,1770782967158,-2275.54971405,0.00034379,2]
[405090494,1770782967180,-401.07774607,0.00034473,7]
[405090495,1770783013152,2121.43831104,0.00033764,2]
[405090543,1770783037434,283.87656613,0.00033154,2]
[405090544,1770783037744,-949.99067746,0.00033764,2]
[405090545,1770783037754,-400.0,0.00034472,2]
[405090546,1770783037763,-914.0,0.00034472,3]
[405090547,1770783037772,-98.92225393,0.00034473,7]
[405090548,1770783037781,-500.0,0.00034473,7]
[405090549,1770783037790,-500.0,0.00034473,7]
[405090550,1770783037799,-500.0,0.00034473,7]
[405090551,1770783037808,-500.0,0.00034473,7]
[405090552,1770783037817,-500.0,0.00034473,7]
[405090553,1770783037826,-500.0,0.00034473,7]
[405090554,1770783037834,-651.42888695,0.00034473,7]
[405090555,1770783037843,-500.0,0.00034473,7]
[405090556,1770783037853,-500.0,0.00034473,7]
[405090558,1770783037862,-563.25695115,0.00034473,7]
[405090560,1770783037871,-500.0,0.00034473,7]
[405090562,1770783037881,-500.0,0.00034473,7]
[405090563,1770783037890,-500.0,0.00034473,7]
[405090564,1770783037900,-500.0,0.00034473,7]
[405090566,1770783037909,-500.0,0.00034473,7]
[405090567,1770783037919,-500.0,0.00034473,7]
[405090568,1770783037928,-500.0,0.00034473,7]
[405090569,1770783037937,-500.0,0.00034473,7]
[405090570,1770783037947,-500.0,0.00034473,7]
[405090571,1770783037959,-395.09743628,0.00034473,7]
[405090572,1770783037968,-500.0,0.00034473,7]
[405090573,1770783037978,-500.0,0.00034473,7]
[405090574,1770783037987,-500.0,0.00034473,7]
[405090575,1770783037998,-508.50670835,0.00034473,7]
[405090576,1770783038007,-500.0,0.00034473,7]
[405090577,1770783038017,-500.0,0.00034473,7]
[405090578,1770783038028,-500.0,0.00034473,7]
[405090579,1770783038037,-500.0,0.00034473,7]
[405090580,1770783038047,-327.52109596,0.00034473,7]
[405090581,1770783038058,-500.0,0.00034473,7]
[405090582,1770783038067,-500.0,0.00034473,7]
[405090583,1770783038077,-289.89779808,0.00034473,7]
[405090584,1770783038088,-500.0,0.00034473,7]
[405090585,1770783038097,-500.0,0.00034476,2]
[405090586,1770783038107,-500.0,0.00034478,2]
[405090587,1770783038117,-3537.68485304,0.00034479,2]
[405090588,1770783038442,-954.02527311,0.00034479,2]
[405090609,1770783040009,-117.68616054,0.00034479,2]
[405090611,1770783040020,-6577.62417521,0.00034479,2]
[405090613,1770783040031,-861.8296754,0.00034479,2]
[405090616,1770783040041,-5208.68824437,0.00034479,2]
[405090618,1770783040052,-1064.56103853,0.00034479,2]
[405090676,1770783045576,-1229.2650889,0.00034479,2]
[405090677,1770783045586,-560.08333606,0.0003489,2]
[405090678,1770783045596,-284.64068081,0.00034897,7]
[405090679,1770783045606,-500.0,0.00034897,2]
[405090680,1770783045615,-9597.17955217,0.00034898,2]
[405090681,1770783045627,-296.04,0.00034898,2]
[405090682,1770783045641,-1709.86448075,0.00034898,2]
[405090683,1770783045839,-4165.76856666,0.00034898,2]
[405090684,1770783045922,-203.46260966,0.00034898,2]
[405090685,1770783045934,-6659.26205116,0.00034898,2]
[405090686,1770783045943,-678.58912363,0.00034999,2]
[405090687,1770783045952,-500.0,0.00034999,2]
[405090688,1770783045966,-3118.6900956,0.00035,2]
[405090697,1770783306767,510.92815296,0.00013273,2]
[405090698,1770783317037,224.81208184,0.00013273,2]
[405090700,1770783393134,504.14408874,0.00014247,2]
[405090701,1770783393697,500.0,0.00013699,2]
[405090702,1770783425549,5000.0,0.000237,2]
[405090703,1770783442032,10000.0,0.000237,2]
[405090704,1770783497055,501.15,0.0003013,120]
[405090705,1770783501103,10000.0,0.000237,2]
[405090706,1770783516755,10000.0,0.000237,2]
[405090707,1770783564240,8000.0,0.000237,2]
[405090714,1770784110590,950.19049231,0.00015,2]
[405090715,1770784146167,-281.72341673,0.00024,2]
[405090716,1770784146187,-300.0,0.00024649,2]
[405090717,1770784146206,-9733.69841074,0.0002465,2]
[405090718,1770784146225,-3644.88502067,0.00025,15]
[405090719,1770784146245,-150.0,0.00025201,2]
[405090720,1770784146267,-2389.77135596,0.00025579,2]
[405090721,1770784146291,-179.3151292,0.00027201,2]
[405090722,1770784146321,-1591.55860072,0.00028,2]
[405090723,1770784146367,-224.18030722,0.00028621,2]
[405090724,1770784146398,-159.97758689,0.00029339,2]
[405090725,1770784146428,-287.95965641,0.00029339,2]
[405090726,1770784146462,-511.92827806,0.00029339,2]
[405090727,1770784146488,-410.47163604,0.0003,30]
[405090728,1770784146519,-270.63634494,0.0003,2]
[405090729,1770784146549,-150.0,0.0003013,2]
[405090730,1770784146577,-500.31111101,0.0003013,2]
[405090731,1770784146608,-394.69979138,0.00030542,2]
[405090732,1770784146639,-1200.0,0.00030883,2]
[405090733,1770784146668,-189.16664492,0.00032005,2]
[405090734,1770784146701,-1437.4476882,0.00032042,2]
[405090735,1770784146729,-2255.2791637,0.00032792,2]
[405090736,1770784146755,-710.45962448,0.0003313,2]
[405090737,1770784146785,-194.1094559,0.0003323,2]
[405090738,1770784146814,-349.39702063,0.0003323,2]
[405090739,1770784146843,-620.52910863,0.0003323,2]
[405090740,1770784146866,-435.86687207,0.0003323,2]
[405090741,1770784146895,-266.34801963,0.00033249,2]
[405090742,1770784160104,-507.31736245,0.000333,2]
[405090743,1770784160123,-153.4373457,0.000334,2]
[405090744,1770784160142,-250.0,0.00033687,2]
[405090745,1770784160161,-500.0,0.00034241,7]
[405090746,1770784160179,-500.0,0.0003451,7]
[405090747,1770784160218,-500.0,0.00034673,7]
[405090748,1770784160242,-500.0,0.00034673,2]
[405090749,1770784160264,-500.0,0.00034673,7]
[405090750,1770784160284,-643.32197757,0.00034673,7]
[405090751,1770784160306,-139.26309902,0.00034673,7]
[405090752,1770784164962,150.14225978,0.00033154,2]
[405090753,1770784170799,1275.1740122,0.00031476,2]
[405090882,1770784237816,-500.0,0.00034672,7]
[405090883,1770784237827,-500.0,0.00034672,7]
[405090884,1770784237837,-500.0,0.00034672,7]
[405090885,1770784237846,-278.7229676,0.00034672,7]
[405090886,1770784237860,-500.0,0.00034672,7]
[405090887,1770784237870,-201.09878444,0.00034672,7]
[405090888,1770784237880,-4963.36639665,0.00034674,2]
[405090889,1770784237891,-5458.32738325,0.00034674,2]
[405090890,1770784237901,-8702.240273,0.000348,5]
[405090918,1770784244569,-596.37299004,0.000348,5]
[405090920,1770784244625,-522.95440386,0.000348,5]
[405090923,1770784245392,-43.05428234,0.000348,5]
[405090929,1770784245887,-1062.57805076,0.000348,5]
[405090930,1770784245896,-1275.1740122,0.00034855,2]
[405090931,1770784245908,-373.3888907,0.000349,2]
[405090932,1770784245920,-500.0,0.00034978,2]
[405090933,1770784245929,-199.24847657,0.00034978,7]
[405090934,1770784245939,-500.0,0.00034979,2]
[405090935,1770784245949,-500.0,0.00034979,2]
[405090936,1770784245960,-500.0,0.00034979,2]
[405090937,1770784245969,-500.0,0.00034979,2]
[405090938,1770784245979,-500.0,0.00034979,2]
[405090939,1770784245988,-500.0,0.00034979,2]
[405090940,1770784245997,-500.0,0.00034979,2]
[405090941,1770784246006,-500.0,0.00034979,2]
[405090942,1770784246015,-500.0,0.00034979,2]
[405090943,1770784246024,-359.92233253,0.00034979,2]
[405090944,1770784246033,-208.56186876,0.00034979,2]
[405090945,1770784246043,-375.41136377,0.00034979,2]
[405090946,1770784246055,-318.04924213,0.00034979,2]
[405090947,1770784246064,-355.29704086,0.00034979,2]
[405090948,1770784246073,-639.53467356,0.00034979,2]
[405090949,1770784246083,-667.39798003,0.00034979,2]
[405090950,1770784246093,-1136.95053076,0.00034979,2]
[405090951,1770784246103,-283.35907394,0.00034999,3]
[405090952,1770784246114,-482.71834671,0.00034999,3]
[405090953,1770784246124,-151.0,0.00035,31]
[405090954,1770784246133,-3778.65132924,0.00035,2]
[405090955,1770784246210,-5560.79501328,0.00035,2]
[405090956,1770784246310,-88.8018208,0.00035,2]
[405090960,1770784291582,237.18466843,0.00013273,2]
[405090961,1770784376556,3855.0,3.75e-05,2]
[405090963,1770784679374,150.46,0.00013487,2]
[405090964,1770784679658,150.46,0.00013487,2]
[405090965,1770784679933,150.43,0.00013487,2]
[405090968,1770785136138,-2790.90492811,0.00025013,2]
[405090969,1770785136162,-150.0,0.00025266,2]
[405090970,1770785136186,-906.78859761,0.00026848,2]
[405090971,1770785227235,-150.0,0.00025394,2]
[405090972,1770785227256,-193.89120089,0.00025583,2]
[405090973,1770785228084,-1778.0094286,0.00025583,2]
[405090974,1770785228106,-293.21140239,0.00026848,2]
[405090975,1770785228126,-177.0,0.00027394,2]
[405090976,1770785228147,-400.0,0.00029159,2]
[405090977,1770785228167,-300.0,0.00029262,2]
[405090978,1770785228186,-300.0,0.00029262,2]
[405090979,1770785228209,-150.00711482,0.00029394,2]
[405090980,1770785250074,-65.99288518,0.00029394,2]
[405090981,1770785250095,-300.0,0.0003138,2]
[405090982,1770785250116,-181.0,0.00031562,3]
[405090983,1770785250140,-400.0,0.00031714,2]
[405090984,1770785250163,-150.0,0.00032877,35]
[405090985,1770785250184,-150.0,0.00032877,35]
[405090986,1770785250205,-167.0,0.00033,14]
[405090987,1770785250226,-224.37493516,0.000332,117]
[405090988,1770785250246,-500.0,0.00033359,7]
[405090989,1770785250269,-502.39032649,0.00033746,7]
[405090990,1770785250290,-429.43776843,0.00034328,2]
[405090991,1770785250310,-167.0,0.00034521,30]
[405090992,1770785250331,-500.0,0.00034574,7]
[405090993,1770785250352,-283.31812773,0.00034672,5]
[405090994,1770785354074,-2283.55029099,0.00025583,2]
[405090995,1770785354093,-5522.6949036,0.00032585,2]
[405090996,1770785363087,-224.41204192,0.00034672,5]
[405090997,1770785363106,-840.7,0.00034672,5]
[405090998,1770785363125,-2000.0,0.00034673,120]
[405090999,1770785363144,-840.7,0.00034799,5]
[405091000,1770785363164,-259.08872802,0.00034805,2]
[405091011,1770785432026,-337.065,0.00033473,2]
[405091092,1770785437403,162.52698561,0.00030137,120]
[405091093,1770785437425,409.91665482,0.00030137,120]
[405091099,1770785438267,-531.205553,0.00033473,2]
[405091100,1770785438278,-180.0,0.00034,120]
[405091101,1770785438288,-482.70937368,0.00034805,2]
[405091102,1770785438299,-1053.19,0.00034879,2]
[405091103,1770785438308,-500.0,0.00034898,2]
[405091104,1770785438318,-500.0,0.00034977,7]
[405091105,1770785438328,-500.0,0.00034977,7]
[405091106,1770785438338,-500.0,0.00034977,7]
[405091107,1770785438347,-500.0,0.00034977,7]
[405091108,1770785438357,-157.06055197,0.00034977,7]
[405091109,1770785438367,-500.0,0.00034977,7]
[405091110,1770785438378,-500.0,0.00034977,7]
[405091111,1770785438387,-500.0,0.00034977,7]
[405091112,1770785438397,-500.0,0.00034977,7]
[405091113,1770785438407,-500.0,0.00034977,7]
[405091114,1770785438417,-500.0,0.00034977,7]
[405091115,1770785438427,-500.0,0.00034977,7]
[405091116,1770785438437,-500.0,0.00034977,7]
[405091117,1770785438447,-500.0,0.00034977,7]